fUSD/lending_fUSD_20260621
["ID","MTS","AMOUNT","RATE_DAILY","PERIOD"]
[425838013,1781971235000,-152.0,0.00014241,2]
[425838015,1781971288000,-331.71194966,0.00014239,2]
[425838018,1781971456000,-151.0,0.00013118,2]
[425838048,1781971462000,-153.0,0.0001424,2]
[425838019,1781971462000,-151.0,0.00013118,2]
[425838020,1781971462000,-151.0,0.00013118,2]
[425838022,1781971462000,-657.0,0.0001363,2]
[425838021,1781971462000,-151.0,0.00013118,2]
[425838023,1781971462000,-621.91,0.00013845,2]
[425838025,1781971462000,-500.0,0.00014177,2]
[425838024,1781971462000,-500.0,0.00014177,2]
[425838028,1781971462000,-500.0,0.00014177,2]
[425838027,1781971462000,-500.0,0.00014177,2]
[425838030,1781971462000,-500.0,0.00014177,2]
[425838029,1781971462000,-500.0,0.00014177,2]
[425838032,1781971462000,-500.0,0.00014177,2]
[425838031,1781971462000,-500.0,0.00014177,2]
[425838033,1781971462000,-500.0,0.00014177,2]
[425838026,1781971462000,-500.0,0.00014177,2]
[425838036,1781971462000,-500.0,0.00014177,2]
[425838034,1781971462000,-500.0,0.00014177,2]
[425838050,1781971462000,-500.0,0.0001424,2]
[425838049,1781971462000,-150.0,0.0001424,2]
[425838047,1781971462000,-216.28381402,0.00014239,2]
[425838044,1781971462000,-153.0,0.00014239,2]
[425838045,1781971462000,-150.0,0.00014239,2]
[425838043,1781971462000,-484.00310304,0.00014239,2]
[425838046,1781971462000,-150.0,0.00014239,2]
[425838040,1781971462000,-499.99999999,0.00014177,2]
[425838041,1781971462000,-500.0,0.00014177,2]
[425838039,1781971462000,-514.60012469,0.00014177,2]
[425838037,1781971462000,-500.0,0.00014177,2]
[425838038,1781971462000,-500.0,0.00014177,2]
[425838035,1781971462000,-500.0,0.00014177,2]
[425838042,1781971462000,-621.91,0.00014192,2]
[425838066,1781971463000,-151.0,0.00014241,2]
[425838060,1781971463000,-151.0,0.00014241,2]
[425838064,1781971463000,-151.0,0.00014241,2]
[425838062,1781971463000,-151.0,0.00014241,2]
[425838063,1781971463000,-152.0,0.00014241,2]
[425838061,1781971463000,-153.0,0.00014241,2]
[425838058,1781971463000,-152.0,0.00014241,2]
[425838052,1781971463000,-153.0,0.00014241,2]
[425838057,1781971463000,-150.0,0.00014241,2]
[425838055,1781971463000,-151.0,0.00014241,2]
[425838056,1781971463000,-150.0,0.00014241,2]
[425838054,1781971463000,-150.0,0.00014241,2]
[425838053,1781971463000,-151.0,0.00014241,2]
[425838051,1781971463000,-153.0,0.00014241,2]
[425838065,1781971463000,-153.0,0.00014241,2]
[425838059,1781971463000,-151.0,0.00014241,2]
[425838067,1781971463000,-150.0,0.00014241,2]
[425838068,1781971463000,-250.0,0.00014241,2]
[425838082,1781971463000,-316.0,0.00014311,2]
[425838070,1781971463000,-250.0,0.00014242,2]
[425838087,1781971463000,-313.0,0.00014311,2]
[425838086,1781971463000,-320.0,0.00014311,2]
[425838085,1781971463000,-310.0,0.00014311,2]
[425838083,1781971463000,-312.0,0.00014311,2]
[425838084,1781971463000,-152.0,0.00014311,2]
[425838081,1781971463000,-316.0,0.00014311,2]
[425838077,1781971463000,-316.0,0.0001431,2]
[425838080,1781971463000,-391.9330029,0.0001431,2]
[425838078,1781971463000,-321.0,0.0001431,2]
[425838076,1781971463000,-153.0,0.0001431,2]
[425838075,1781971463000,-314.0,0.0001431,2]
[425838074,1781971463000,-311.0,0.0001431,2]
[425838073,1781971463000,-150.0,0.00014309,2]
[425838072,1781971463000,-152.0,0.00014264,2]
[425838069,1781971463000,-173.22481444,0.00014241,2]
[425838071,1781971463000,-151.0,0.00014247,2]
[425838079,1781971463000,-151.0,0.0001431,2]
[425838094,1781971464000,-222.24,0.00014461,2]
[425838095,1781971464000,-621.91,0.00014538,2]
[425838096,1781971464000,-621.91,0.00014884,2]
[425838092,1781971464000,-314.0,0.00014311,2]
[425838103,1781971464000,-177.95927908,0.000149,2]
[425838091,1781971464000,-151.0,0.00014311,2]
[425838089,1781971464000,-315.0,0.00014311,2]
[425838090,1781971464000,-315.0,0.00014311,2]
[425838088,1781971464000,-151.0,0.00014311,2]
[425838097,1781971464000,-2134.707,0.00014895,2]
[425838093,1781971464000,-160.0,0.00014317,2]
[425838098,1781971464000,-179.271,0.00014895,2]
[425838108,1781971464000,-500.0,0.00014999,2]
[425838099,1781971464000,-13002.8819,0.00014895,2]
[425838101,1781971464000,-888.89482549,0.000149,2]
[425838102,1781971464000,-1556.77296582,0.000149,2]
[425838104,1781971464000,-242.46,0.00014986,2]
[425838105,1781971464000,-525.39817668,0.0001499,2]
[425838106,1781971464000,-525.39817668,0.0001499,2]
[425838107,1781971464000,-525.39817668,0.0001499,2]
[425838109,1781971464000,-500.0,0.00014999,2]
[425838111,1781971464000,-500.0,0.00014999,2]
[425838112,1781971464000,-500.0,0.00014999,2]
[425838110,1781971464000,-500.0,0.00014999,2]
[425838100,1781971464000,-208.00294837,0.000149,2]
[425838118,1781971465000,-628.69087455,0.00014999,2]
[425838120,1781971465000,-500.0,0.00014999,2]
[425838119,1781971465000,-500.0,0.00014999,2]
[425838121,1781971465000,-500.0,0.00014999,2]
[425838116,1781971465000,-500.0,0.00014999,2]
[425838114,1781971465000,-500.0,0.00014999,2]
[425838113,1781971465000,-500.0,0.00014999,2]
[425838117,1781971465000,-500.0,0.00014999,2]
[425838123,1781971465000,-500.0,0.00014999,2]
[425838115,1781971465000,-500.0,0.00014999,2]
[425838122,1781971465000,-500.0,0.00014999,2]
[425838125,1781971465000,-500.0,0.00014999,2]
[425838127,1781971465000,-500.0,0.00014999,2]
[425838126,1781971465000,-500.0,0.00014999,2]
[425838129,1781971465000,-500.0,0.00014999,2]
[425838128,1781971465000,-500.0,0.00014999,2]
[425838130,1781971465000,-442.78257418,0.00014999,2]
[425838131,1781971465000,-300.0,0.00014999,2]
[425838132,1781971465000,-1944268.45724339,0.00015,2]
[425838124,1781971465000,-500.0,0.00014999,2]
[425838135,1781971474000,-1999400.0,0.00015,2]
[425838134,1781971474000,-400.0,0.000145,5]
[425838133,1781971474000,-200.0,0.000144,5]
[425838136,1781971607000,-520.70037141,0.00013487,2]
[425838137,1781971660000,-338.80217213,0.00013487,2]
[425838141,1781971714000,-182.79,0.00013378,2]
[425838151,1781971745000,-150.0,0.00013488,2]
[425838142,1781971745000,-276.02691848,0.0001337,2]
[425838144,1781971745000,-706.67,0.00013371,2]
[425838143,1781971745000,-390.51112497,0.0001337,2]
[425838145,1781971745000,-843.72,0.00013371,2]
[425838146,1781971745000,-364.49025998,0.00013486,2]
[425838147,1781971745000,-237.16152049,0.00013486,2]
[425838149,1781971745000,-150.0,0.00013488,2]
[425838148,1781971745000,-150.0,0.00013488,2]
[425838150,1781971745000,-150.0,0.00013488,2]
[425838152,1781971745000,-150.00000001,0.00013488,2]
[425838153,1781971745000,-150.0,0.00013488,2]
[425838162,1781971745000,-150.0,0.00013559,2]
[425838154,1781971745000,-150.0,0.00013488,2]
[425838163,1781971745000,-150.0,0.00013576,2]
[425838159,1781971745000,-150.0,0.00013502,2]
[425838161,1781971745000,-150.0,0.00013546,2]
[425838164,1781971745000,-150.0,0.00013605,2]
[425838158,1781971745000,-216.28381402,0.00013489,2]
[425838156,1781971745000,-160.0,0.00013489,2]
[425838157,1781971745000,-160.0,0.00013489,2]
[425838155,1781971745000,-150.0,0.00013488,2]
[425838160,1781971745000,-150.0,0.00013517,2]
[425838172,1781971746000,-150.0,0.00013752,2]
[425838176,1781971746000,-150.0,0.0001384,2]
[425838175,1781971746000,-150.0,0.00013811,2]
[425838174,1781971746000,-150.0,0.00013782,2]
[425838173,1781971746000,-150.0,0.00013773,2]
[425838177,1781971746000,-150.0,0.00013844,2]
[425838166,1781971746000,-150.0,0.00013635,2]
[425838169,1781971746000,-150.0,0.00013702,2]
[425838168,1781971746000,-150.0,0.00013693,2]
[425838167,1781971746000,-150.0,0.00013664,2]
[425838165,1781971746000,-150.0,0.0001363,2]
[425838170,1781971746000,-150.0,0.00013723,2]
[425838180,1781971746000,-150.0,0.0001387,2]
[425838171,1781971746000,-150.0,0.00013737,2]
[425838179,1781971746000,-150.0,0.00013862,2]
[425838178,1781971746000,-150.0,0.00013862,2]
[425838193,1781971746000,-150.0,0.00014075,2]
[425838192,1781971746000,-150.0,0.00014059,2]
[425838190,1781971746000,-150.0,0.00014017,2]
[425838189,1781971746000,-150.0,0.00013987,2]
[425838188,1781971746000,-150.0,0.00013987,2]
[425838191,1781971746000,-150.0,0.00014046,2]
[425838187,1781971746000,-150.0,0.00013987,2]
[425838185,1781971746000,-150.0,0.00013987,2]
[425838184,1781971746000,-150.0,0.00013958,2]
[425838182,1781971746000,-150.0,0.00013916,2]
[425838183,1781971746000,-150.0,0.00013928,2]
[425838181,1781971746000,-150.0,0.00013899,2]
[425838186,1781971746000,-150.0,0.00013987,2]
[425838203,1781971747000,-150.0,0.00014252,2]
[425838208,1781971747000,-150.0,0.00014344,2]
[425838206,1781971747000,-150.0,0.0001431,2]
[425838207,1781971747000,-150.0,0.0001434,2]
[425838205,1781971747000,-150.0,0.00014281,2]
[425838204,1781971747000,-150.0,0.00014273,2]
[425838202,1781971747000,-150.0,0.00014237,2]
[425838195,1781971747000,-150.0,0.0001413,2]
[425838199,1781971747000,-150.0,0.00014201,2]
[425838200,1781971747000,-150.0,0.00014222,2]
[425838198,1781971747000,-150.0,0.00014193,2]
[425838196,1781971747000,-150.0,0.00014134,2]
[425838197,1781971747000,-150.0,0.00014164,2]
[425838194,1781971747000,-150.0,0.00014105,2]
[425838201,1781971747000,-150.0,0.00014237,2]
[425838209,1781971747000,-150.0,0.00014369,2]
[425838210,1781971747000,-150.0,0.00014399,2]
[425838212,1781971747000,-150.0,0.00014428,2]
[425838211,1781971747000,-150.0,0.00014415,2]
[425838227,1781971747000,-150.0,0.00014629,2]
[425838228,1781971747000,-150.0,0.00014634,2]
[425838226,1781971747000,-150.0,0.00014612,2]
[425838224,1781971747000,-600.0,0.000146,5]
[425838223,1781971747000,-150.0,0.00014575,2]
[425838222,1781971747000,-150.0,0.00014558,2]
[425838221,1781971747000,-150.0,0.00014546,2]
[425838225,1781971747000,-150.0,0.00014604,2]
[425838219,1781971747000,-300.0,0.000145,5]
[425838217,1781971747000,-150.0,0.00014487,2]
[425838218,1781971747000,-150.0,0.00014487,2]
[425838216,1781971747000,-150.0,0.00014487,2]
[425838213,1781971747000,-150.0,0.00014457,2]
[425838215,1781971747000,-150.0,0.00014487,2]
[425838214,1781971747000,-150.0,0.00014487,2]
[425838220,1781971747000,-150.0,0.00014516,2]
[425838238,1781971748000,-1300.0,0.000148,5]
[425838243,1781971748000,-500.0,0.00014835,2]
[425838244,1781971748000,-150.0,0.00014839,2]
[425838242,1781971748000,-250.0,0.00014835,2]
[425838240,1781971748000,-600.0,0.00014835,2]
[425838241,1781971748000,-300.0,0.00014835,2]
[425838239,1781971748000,-150.0,0.0001481,2]
[425838235,1781971748000,-150.0,0.00014751,2]
[425838245,1781971748000,-150.0,0.00014844,2]
[425838237,1781971748000,-150.0,0.00014781,2]
[425838234,1781971748000,-150.0,0.00014737,2]
[425838233,1781971748000,-150.0,0.00014722,2]
[425838232,1781971748000,-150.0,0.00014701,2]
[425838231,1781971748000,-900.0,0.000147,5]
[425838230,1781971748000,-150.0,0.00014692,2]
[425838229,1781971748000,-150.0,0.00014663,2]
[425838236,1781971748000,-150.0,0.00014772,2]
[425838247,1781971748000,-150.0,0.00014898,2]
[425838246,1781971748000,-150.0,0.00014869,2]
[425838248,1781971748000,-1890.75335066,0.000149,2]
[425838265,1781971748000,-168.69767221,0.00014986,2]
[425838264,1781971748000,-150.00000001,0.00014986,2]
[425838261,1781971748000,-150.0,0.00014986,2]
[425838262,1781971748000,-157.27236994,0.00014986,2]
[425838260,1781971748000,-150.0,0.00014986,2]
[425838263,1781971748000,-150.0,0.00014986,2]
[425838257,1781971748000,-150.0,0.00014928,2]
[425838259,1781971748000,-255.0,0.00014985,2]
[425838258,1781971748000,-150.0,0.00014957,2]
[425838254,1781971748000,-150.0,0.00014915,2]
[425838253,1781971748000,-173.27904482,0.000149,2]
[425838255,1781971748000,-193.67269562,0.00014918,2]
[425838252,1781971748000,-183.924863,0.000149,2]
[425838249,1781971748000,-633.54296753,0.000149,2]
[425838251,1781971748000,-948.0516882,0.000149,2]
[425838250,1781971748000,-1600.0,0.000149,5]
[425838256,1781971748000,-193.67269562,0.00014918,2]
[425838268,1781971749000,-151.0,0.00014997,2]
[425838266,1781971749000,-151.0,0.00014997,2]
[425838267,1781971749000,-151.0,0.00014997,2]
[425838269,1781971749000,-611.16,0.00014999,2]
[425838271,1781971749000,-500.0,0.00014999,2]
[425838270,1781971749000,-500.0,0.00014999,2]
[425838274,1781971749000,-500.0,0.00014999,2]
[425838272,1781971749000,-500.0,0.00014999,2]
[425838275,1781971749000,-500.0,0.00014999,2]
[425838273,1781971749000,-500.0,0.00014999,2]
[425838276,1781971749000,-277.78982719,0.00014999,10]
[425838277,1781971749000,-555.5796544,0.00015,10]
[425838278,1781971749000,-1966199.73953285,0.00015,2]
[425838279,1781971784000,-1000.0,0.00027397,120]
[425838280,1781971784000,-1184.78,0.00027824,120]
[425838281,1781971784000,-2000.0,0.0003,120]
[425838282,1781971784000,-1050.0,0.0003,120]
[425838283,1781971784000,-2818.3020574,0.000301,120]
[425838318,1781971831000,-500.0,0.00014999,2]
[425838307,1781971831000,-500.0,0.00014999,2]
[425838305,1781971831000,-2000.0,0.00014999,2]
[425838316,1781971831000,-500.0,0.00014999,2]
[425838306,1781971831000,-1000.0,0.00014999,2]
[425838303,1781971831000,-790.14847021,0.000149,2]
[425838298,1781971831000,-0.87428809,0.000149,2]
[425838300,1781971831000,-6862.78639008,0.000149,2]
[425838301,1781971831000,-1372.6257295,0.000149,2]
[425838299,1781971831000,-3493.35105,0.000149,2]
[425838296,1781971831000,-247.06539883,0.000149,2]
[425838297,1781971831000,-384.16976805,0.000149,2]
[425838313,1781971831000,-500.0,0.00014999,2]
[425838304,1781971831000,-224.9726958,0.0001499,2]
[425838308,1781971831000,-500.0,0.00014999,2]
[425838302,1781971831000,-474.0258441,0.000149,2]
[425838315,1781971831000,-500.0,0.00014999,2]
[425838309,1781971831000,-500.0,0.00014999,2]
[425838334,1781971831000,-500.0,0.00014999,2]
[425838336,1781971831000,-500.0,0.00014999,2]
[425838332,1781971831000,-500.0,0.00014999,2]
[425838324,1781971831000,-500.0,0.00014999,2]
[425838340,1781971831000,-65243.9227633,0.00015,2]
[425838321,1781971831000,-500.0,0.00014999,2]
[425838337,1781971831000,-500.41758637,0.00014999,2]
[425838330,1781971831000,-500.0,0.00014999,2]
[425838310,1781971831000,-500.0,0.00014999,2]
[425838312,1781971831000,-500.0,0.00014999,2]
[425838311,1781971831000,-500.0,0.00014999,2]
[425838326,1781971831000,-500.0,0.00014999,2]
[425838328,1781971831000,-500.0,0.00014999,2]
[425838322,1781971831000,-500.0,0.00014999,2]
[425838371,1781971837000,-428.84375364,0.000149,2]
[425838370,1781971837000,-255.14318199,0.00014899,2]
[425838369,1781971837000,-166.01306435,0.00014899,2]
[425838425,1781971838000,-150.0,0.00016338,2]
[425838407,1781971838000,-213.93,0.0001554,2]
[425838412,1781971838000,-415.85945736,0.00016,2]
[425838410,1781971838000,-5000.0,0.000158,5]
[425838405,1781971838000,-621.91,0.0001523,2]
[425838416,1781971838000,-415.85945736,0.000162,2]
[425838418,1781971838000,-433.0,0.00016205,2]
[425838422,1781971838000,-150.0,0.00016338,2]
[425838420,1781971838000,-1500.0,0.00016312,2]
[425838435,1781971838000,-571.65,0.00016438,2]
[425838429,1781971838000,-150.0,0.00016338,2]
[425838442,1781971838000,-361.05636777,0.00016438,2]
[425838440,1781971838000,-500.0,0.00016438,2]
[425838439,1781971838000,-659.45,0.00016438,2]
[425838444,1781971838000,-575.5,0.00016438,2]
[425838446,1781971838000,-621.3,0.00016438,2]
[425838447,1781971838000,-1890.75335065,0.00016456,2]
[425838427,1781971838000,-150.0,0.00016338,2]
[425838408,1781971838000,-1890.75335065,0.00015678,2]
[425838433,1781971838000,-500.0,0.0001635,2]
[425838431,1781971838000,-279.73608303,0.00016338,2]
[425838463,1781971838000,-969.11,0.00016931,2]
[425838437,1781971838000,-999.08,0.00016438,2]
[425838414,1781971838000,-415.85945736,0.000161,2]
[425838388,1781971838000,-172.0,0.00015,2]
[425838409,1781971838000,-10357.0117281,0.00015678,2]
[425838461,1781971838000,-554.5,0.00016931,2]
[425838373,1781971838000,-1203556.04042062,0.00015,2]
[425838372,1781971838000,-863369.38354636,0.000149,2]
[425838376,1781971838000,-429.41273744,0.00015,2]
[425838374,1781971838000,-8111.73007846,0.00015,2]
[425838375,1781971838000,-1427916.48946275,0.00015,2]
[425838378,1781971838000,-157.62000848,0.00015,2]
[425838380,1781971838000,-157.62000847,0.00015,2]
[425838381,1781971838000,-157.62000847,0.00015,2]
[425838379,1781971838000,-157.62000847,0.00015,2]
[425838377,1781971838000,-153.16,0.00015,2]
[425838382,1781971838000,-916.97,0.00015,2]
[425838383,1781971838000,-1000.0,0.00015,2]
[425838392,1781971838000,-150.0,0.00015068,2]
[425838387,1781971838000,-172.0,0.00015,2]
[425838385,1781971838000,-1003.90706121,0.00015,2]
[425838390,1781971838000,-172.49953064,0.00015,2]
[425838394,1781971838000,-169.72912985,0.00015071,2]
[425838403,1781971838000,-4166.7345349,0.00015125,2]
[425838396,1781971838000,-299.42230369,0.00015071,2]
[425838384,1781971838000,-1000.0,0.00015,2]
[425838399,1781971838000,-447.91785905,0.00015071,2]
[425838401,1781971838000,-606.0483,0.00015071,2]
[425838411,1781971838000,-153.61758556,0.00016,2]
[425838451,1781971838000,-3225.85569317,0.0001672,2]
[425838493,1781971838000,-10357.0117281,0.00018011,2]
[425838455,1781971838000,-252.55,0.0001674,7]
[425838507,1781971838000,-1734.62772924,0.00018504,2]
[425838519,1781971838000,-3578.45055507,0.000189,2]
[425838521,1781971838000,-337.89946006,0.0001896,15]
[425838534,1781971838000,-790.14847019,0.0001918,2]
[425838536,1781971838000,-916.97,0.000192,2]
[425838538,1781971838000,-3578.45055507,0.000193,2]
[425838540,1781971838000,-3578.45055507,0.000194,2]
[425838545,1781971838000,-220.0,0.00019452,2]
[425838543,1781971838000,-166.66,0.00019421,2]
[425838547,1781971838000,-1890.75335065,0.00019567,2]
[425838523,1781971838000,-166.66,0.00019044,2]
[425838525,1781971838000,-1798.80895522,0.00019052,2]
[425838532,1781971838000,-500.0,0.00019153,2]
[425838530,1781971838000,-172.35133052,0.00019131,2]
[425838528,1781971838000,-3578.45055507,0.000191,2]
[425838549,1781971838000,-10357.0117281,0.00019567,2]
[425838551,1781971838000,-1865.36488656,0.000196,2]
[425838553,1781971838000,-3578.45055507,0.000196,2]
[425838561,1781971838000,-633.54296752,0.000199,2]
[425838555,1781971838000,-305.67423164,0.00019636,2]
[425838559,1781971838000,-3578.45055507,0.000198,2]
[425838449,1781971838000,-10357.0117281,0.00016456,2]
[425838563,1781971838000,-186.09459873,0.000199,2]
[425838501,1781971838000,-1783.53,0.00018493,2]
[425838503,1781971838000,-3578.45055507,0.000185,2]
[425838557,1781971838000,-166.66,0.00019798,2]
[425838513,1781971838000,-3578.45055507,0.000187,2]
[425838505,1781971838000,-199.5,0.00018502,2]
[425838459,1781971838000,-1555.5,0.0001686,2]
[425838453,1781971838000,-1610.0,0.00016736,5]
[425838465,1781971838000,-558.24,0.00016931,2]
[425838467,1781971838000,-500.0,0.00017032,2]
[425838470,1781971838000,-790.14847019,0.0001704,2]
[425838472,1781971838000,-1890.75335065,0.00017233,2]
[425838474,1781971838000,-10357.0117281,0.00017233,2]
[425838476,1781971838000,-1613.0535,0.00017408,2]
[425838480,1781971838000,-264.0,0.00017508,2]
[425838489,1781971838000,-15557.46,0.00018,2]
[425838457,1781971838000,-916.97,0.000168,2]
[425838478,1781971838000,-183.92486294,0.00017463,2]
[425838484,1781971838000,-1672.7364795,0.00017956,2]
[425838517,1781971838000,-10357.0117281,0.00018789,2]
[425838511,1781971838000,-166.66,0.00018667,2]
[425838509,1781971838000,-1184.78,0.00018549,2]
[425838499,1781971838000,-319.4,0.0001841,2]
[425838515,1781971838000,-1890.75335065,0.00018789,2]
[425838495,1781971838000,-166.66,0.0001829,2]
[425838486,1781971838000,-23954.8,0.00018,2]
[425838491,1781971838000,-1890.75335065,0.00018011,2]
[425838482,1781971838000,-166.66,0.00017913,2]
[425838497,1781971838000,-1171.57,0.000184,2]
[425838636,1781971839000,-150.0,0.0002058,2]
[425838638,1781971839000,-150.0,0.0002058,2]
[425838640,1781971839000,-288.49280492,0.0002058,2]
[425838650,1781971839000,-1184.78,0.00020868,2]
[425838644,1781971839000,-182.481171,0.00020819,2]
[425838646,1781971839000,-425.07967,0.00020819,2]
[425838648,1781971839000,-220.0,0.00020819,2]
[425838631,1781971839000,-150.0,0.0002058,2]
[425838652,1781971839000,-2576.0,0.000209,2]
[425838641,1781971839000,-2005.9555727,0.00020696,2]
[425838667,1781971839000,-156.0,0.00021,2]
[425838658,1781971839000,-158.0,0.00021,2]
[425838662,1781971839000,-287.0,0.00021,2]
[425838660,1781971839000,-220.0,0.00021,2]
[425838656,1781971839000,-156.0,0.00021,2]
[425838664,1781971839000,-255.0,0.00021,2]
[425838669,1781971839000,-183.0,0.00021,2]
[425838672,1781971839000,-228.0,0.00021,2]
[425838670,1781971839000,-941.0,0.00021,2]
[425838676,1781971839000,-179.22637113,0.00021091,2]
[425838633,1781971839000,-150.0,0.0002058,2]
[425838674,1781971839000,-713.00970077,0.00021032,2]
[425838654,1781971839000,-220.0,0.00020904,2]
[425838629,1781971839000,-150.0,0.0002058,2]
[425838591,1781971839000,-3578.45055507,0.0002,2]
[425838617,1781971839000,-1890.75335065,0.00020344,2]
[425838680,1781971839000,-10357.0117281,0.00021122,2]
[425838568,1781971839000,-158.0,0.0002,2]
[425838565,1781971839000,-151.0,0.0002,2]
[425838570,1781971839000,-220.0,0.0002,2]
[425838572,1781971839000,-287.0,0.0002,2]
[425838574,1781971839000,-255.0,0.0002,2]
[425838576,1781971839000,-156.0,0.0002,2]
[425838581,1781971839000,-941.0,0.0002,2]
[425838579,1781971839000,-183.0,0.0002,2]
[425838583,1781971839000,-505.0,0.0002,2]
[425838627,1781971839000,-150.0,0.000205,2]
[425838589,1781971839000,-2000.0,0.0002,7]
[425838585,1781971839000,-228.0,0.0002,2]
[425838601,1781971839000,-183.92486294,0.00020025,2]
[425838609,1781971839000,-1934.38338736,0.00020148,2]
[425838622,1781971839000,-319.4,0.00020381,2]
[425838620,1781971839000,-10357.0117281,0.00020344,2]
[425838623,1781971839000,-277.7898272,0.000204,10]
[425838611,1781971839000,-3578.45055507,0.000202,2]
[425838615,1781971839000,-350.0,0.00020247,2]
[425838613,1781971839000,-350.0,0.00020247,2]
[425838625,1781971839000,-1117.76838938,0.00020488,2]
[425838587,1781971839000,-506.0,0.0002,2]
[425838682,1781971839000,-277.7898272,0.00021222,10]
[425838769,1781971839000,-500.0,0.00021244,2]
[425838684,1781971839000,-1030.0,0.00021244,2]
[425838748,1781971839000,-151.0,0.00021244,2]
[425838744,1781971839000,-2080.17592889,0.00021244,2]
[425838746,1781971839000,-500.0,0.00021244,2]
[425838750,1781971839000,-151.0,0.00021244,2]
[425838754,1781971839000,-152.0,0.00021244,2]
[425838762,1781971839000,-151.0,0.00021244,2]
[425838752,1781971839000,-156.84726257,0.00021244,2]
[425838767,1781971839000,-500.0,0.00021244,2]
[425838756,1781971839000,-500.0,0.00021244,2]
[425838790,1781971839000,-151.0,0.00021244,2]
[425838741,1781971839000,-500.0,0.00021244,2]
[425838765,1781971839000,-152.0,0.00021244,2]
[425838758,1781971839000,-500.0,0.00021244,2]
[425838773,1781971839000,-152.0,0.00021244,2]
[425838771,1781971839000,-151.0,0.00021244,2]
[425838775,1781971839000,-500.0,0.00021244,2]
[425838781,1781971839000,-151.0,0.00021244,2]
[425838779,1781971839000,-151.0,0.00021244,2]
[425838783,1781971839000,-152.0,0.00021244,2]
[425838786,1781971839000,-500.0,0.00021244,2]
[425838788,1781971839000,-500.0,0.00021244,2]
[425838687,1781971839000,-1068.11,0.00021244,2]
[425838760,1781971839000,-151.0,0.00021244,2]
[425838737,1781971839000,-151.0,0.00021244,2]
[425838777,1781971839000,-500.0,0.00021244,2]
[425838733,1781971839000,-152.65821072,0.00021244,2]
[425838735,1781971839000,-5503.77751861,0.00021244,2]
[425838678,1781971839000,-1890.75335065,0.00021122,2]
[425838689,1781971839000,-200.0,0.00021244,2]
[425838693,1781971839000,-151.0,0.00021244,2]
[425838696,1781971839000,-1148.61238259,0.00021244,2]
[425838694,1781971839000,-151.0,0.00021244,2]
[425838698,1781971839000,-151.0,0.00021244,2]
[425838700,1781971839000,-1191.11104074,0.00021244,2]
[425838702,1781971839000,-1235.18214925,0.00021244,2]
[425838704,1781971839000,-151.0,0.00021244,2]
[425838707,1781971839000,-1280.88388877,0.00021244,2]
[425838690,1781971839000,-1107.63007,0.00021244,2]
[425838715,1781971839000,-578.20924308,0.00021244,2]
[425838709,1781971839000,-151.0,0.00021244,2]
[425838731,1781971839000,-721.12765534,0.00021244,2]
[425838728,1781971839000,-500.0,0.00021244,2]
[425838739,1781971839000,-151.0,0.00021244,2]
[425838724,1781971839000,-151.0,0.00021244,2]